[Event "23rd European Women Club Cup 2018"]
[Site "Halkidiki"]
[Date "2018.10.13"]
[Round "2"]
[White "Mihevc-Mohr, Narcisa"]
[Black "Brunello, Marina"]
[Result "0-1"]
[ECO "B91"]
[WhiteElo "1983"]
[BlackElo "2294"]
[Annotator "NA"]
[PlyCount "66"]
[EventDate "2018.10.12"]
[EventType "team-tourn"]
[EventCountry "GRE"]
[SourceTitle "playchess.com"]
[Source "ChessBase"]
[SourceQuality "1"]
[WhiteTeam "Maribor"]
[BlackTeam "Pentole Agnelli"]
[TimeControl "40/5400+30:1800+30"]

1. e4 {[%emt 0:00:00]} c5 {[%emt 0:00:00]} 2. Nf3 {[%emt 0:00:00]} d6 {[%emt 0:00:00]} 3. d4 {[%emt 0:00:00]} cxd4 {[%emt 0:00:01]} 4. Nxd4 {[%emt 0:00:00]} Nf6 {[%emt 0:00:05]} 5. Nc3 {[%emt 0:00:04]} a6 {[%emt 0:00:07]} 6. g3 {[%emt 0:00:19]} e5 {[%emt 0:01:53]} 7. Nb3 {[%emt 0:00:26]} Be7 {[%emt 0:00:35]} 8. a4 {[%emt 0:02:47]} Nc6 {[%emt 0:04:02]} 9. Bg2 {[%emt 0:04:35]} O-O {[%emt 0:00:23]} 10. O-O {[%emt 0:00:11]} Bg4 {[%emt 0:02:46]} 11. f3 {[%emt 0:04:33]} Be6 {[%emt 0:00:17]} 12. Bg5 {[%emt 0:05:05]} Nxe4 {[%emt 0:05:47]} 13. Nxe4 {[%emt 0:36:18]} Bxg5 {[%emt 0:00:10]} 14. Qxd6 {[%emt 0:00:50]} Qb6+ {[%emt 0:01:51]} 15. Kh1 {[%emt 0:02:42]} Be7 {[%emt 0:01:07]} 16. Qd3 {[%emt 0:05:35]} Nb4 {[%emt 0:08:40]} 17. a5 {[%emt 0:16:54]} Qc7 {[%emt 0:02:38]} 18. Qc3 {[%emt 0:02:27]} Qxc3 {[%emt 0:00:51]} 19. bxc3 {[%emt 0:00:05]} Nxc2 {[%emt 0:00:09]} 20. Rab1 {[%emt 0:01:09]} Rac8 {[%emt 0:04:52]} 21. Rfc1 {[%emt 0:05:43]} Ne3 {[%emt 0:00:30]} 22. Nbd2 {[%emt 0:01:47]} Bd5 {[%emt 0:00:50]} 23. Nf1 {[%emt 0:04:20]} Nxg2 {[%emt 0:03:55]} 24. Kxg2 {[%emt 0:00:04]} f5 {[%emt 0:00:22]} 25. Ned2 {[%emt 0:01:23]} Bc5 {[%emt 0:03:25]} 26. Re1 {[%emt 0:01:31]} Rce8 {[%emt 0:00:50]} 27. Ne3 {[%emt 0:00:57]} Bc6 {[%emt 0:00:05]} 28. Nb3 {[%emt 0:01:29]} Ba7 {[%emt 0:01:58]} 29. Nd2 {[%emt 0:01:13]} Rd8 {[%emt 0:01:49]} 30. Ndc4 {[%emt 0:00:07]} Rd3 {[%emt 0:02:32]} 31. Rbc1 {[%emt 0:00:35]} f4 {[%emt 0:00:30]} 32. Red1 {[%emt 0:01:25]} Rxe3 {[%emt 0:00:37]} 33. Nxe3 {[%emt 0:00:04]} fxe3 {[%emt 0:00:39]} 0-1

[Event "23rd European Women Club Cup 2018"]
[Site "Halkidiki"]
[Date "2018.10.14"]
[Round "3"]
[White "Muzychuk, Mariya"]
[Black "Shvayger, Yuliya"]
[Result "1/2-1/2"]
[ECO "B24"]
[WhiteElo "2533"]
[BlackElo "2375"]
[Annotator "ChessBase"]
[PlyCount "93"]
[EventDate "2018.10.12"]
[EventType "team-tourn"]
[EventCountry "GRE"]
[SourceTitle "playchess.com"]
[Source "ChessBase"]
[SourceQuality "1"]
[WhiteTeam "Kyiv"]
[BlackTeam "Beer Sheva"]
[TimeControl "40/5400+30:1800+30"]

1. e4 {[%emt 0:00:00]} c5 {[%emt 0:00:00]} 2. Nc3 {[%emt 0:00:00]} Nc6 {[%emt 0:00:05]} 3. Bb5 {[%emt 0:00:31]} Nd4 {[%emt 0:02:58]} 4. Nf3 {[%emt 0:00:28]} e6 {[%emt 0:04:41]} 5. O-O {[%emt 0:01:25]} Ne7 {[%emt 0:00:40]} 6. Nxd4 {[%emt 0:02:07]} cxd4 {[%emt 0:00:10]} 7. Ne2 {[%emt 0:00:09]} a6 {[%emt 0:02:35]} 8. Bd3 {[%emt 0:03:11]} Nc6 {[%emt 0:01:09]} 9. c3 {[%emt 0:01:16]} Bc5 {[%emt 0:01:06]} 10. b4 {[%emt 0:01:00]} Ba7 {[%emt 0:01:19]} 11. cxd4 {[%emt 0:01:33]} Nxd4 {[%emt 0:10:20]} 12. Bb2 {[%emt 0:00:53]} Nxe2+ {[%emt 0:02:10]} 13. Qxe2 {[%emt 0:00:26]} O-O {[%emt 0:00:09]} 14. Qh5 {[%emt 0:01:59]} d6 {[%emt 0:08:37]} 15. Kh1 {[%emt 0:05:22]} f6 {[%emt 0:10:46]} 16. f4 {[%emt 0:01:44]} Qe8 {[%emt 0:10:14]} 17. Qh4 {[%emt 0:01:40]} e5 {[%emt 0:00:48]} 18. f5 {[%emt 0:00:00]} b5 {[%emt 0:02:00]} 19. Bc2 {[%emt 0:01:33]} Bb7 {[%emt 0:04:38]} 20. Bb3+ {[%emt 0:01:00]} d5 {[%emt 0:01:31]} 21. Rf3 {[%emt 0:13:43]} Rd8 {[%emt 0:00:24]} 22. Rd3 {[%emt 0:09:52]} Rf7 {[%emt 0:02:56]} 23. exd5 {[%emt 0:05:39]} Rd6 {[%emt 0:00:26]} 24. Rh3 {[%emt 0:02:11]} h6 {[%emt 0:00:29]} 25. d4 exd4 {[%emt 0:12:28]} 26. Bc1 {[%emt 0:11:24]} Re7 {[%emt 0:14:25]} 27. Bf4 {[%emt 0:02:05]} Rxd5 {[%emt 0:00:38]} 28. Rf1 {[%emt 0:04:57]} Re4 {[%emt 0:01:24]} 29. Rg3 {[%emt 0:01:50]} Kh7 {[%emt 0:03:05]} 30. Bxd5 {[%emt 0:03:06]} Bxd5 {[%emt 0:00:02]} 31. Qg4 {[%emt 0:00:43]} Qf7 {[%emt 0:01:12]} 32. Rc1 {[%emt 0:04:11]} Bc4 {[%emt 0:00:07]} 33. h4 {[%emt 0:00:40]} Qe7 {[%emt 0:01:27]} 34. Kh2 {[%emt 0:04:56]} Kh8 {[%emt 0:00:13]} 35. Qf3 {[%emt 0:02:23]} Bb6 {[%emt 0:00:29]} 36. Kh3 {[%emt 0:00:40]} Kh7 {[%emt 0:00:46]} 37. Qg4 {[%emt 0:10:09]} Kh8 {[%emt 0:00:06]} 38. Bd6 {[%emt 0:00:40]} Qb7 {[%emt 0:01:07]} 39. Qg6 {[%emt 0:00:32]} Re3 {[%emt 0:00:55]} 40. Rxe3 {[%emt 0:00:00]} dxe3 {[%emt 0:00:00]} 41. Qe8+ {[%emt 0:03:34]} Kh7 {[%emt 0:01:42]} 42. Bc5 {[%emt 0:01:18]} e2 {[%emt 0:01:49]} 43. Rc3 {[%emt 0:08:49]} Bc7 {[%emt 0:07:04]} 44. Qg6+ {[%emt 0:05:23]} Kh8 {[%emt 0:00:05]} 45. Qe8+ {[%emt 0:01:51]} Kh7 {[%emt 0:00:02]} 46. Qg6+ {[%emt 0:00:47]} Kh8 {[%emt 0:00:02]} 47. Qe8+ {[%emt 0:00:44]} 1/2-1/2

[Event "23rd European Women Club Cup 2018"]
[Site "Halkidiki"]
[Date "2018.10.14"]
[Round "3"]
[White "Dzagnidze, Nana"]
[Black "Ushenina, Anna"]
[Result "1/2-1/2"]
[ECO "A28"]
[WhiteElo "2509"]
[BlackElo "2451"]
[Annotator "ChessBase"]
[PlyCount "52"]
[EventDate "2018.10.12"]
[EventType "team-tourn"]
[EventCountry "GRE"]
[SourceTitle "playchess.com"]
[Source "ChessBase"]
[SourceQuality "1"]
[WhiteTeam "Nona"]
[BlackTeam "Ugra"]
[TimeControl "40/5400+30:1800+30"]

1. c4 {[%emt 0:00:00]} e5 {[%emt 0:00:00]} 2. Nc3 {[%emt 0:00:00]} Nf6 {[%emt 0:00:00]} 3. Nf3 {[%emt 0:00:28]} Nc6 {[%emt 0:00:00]} 4. a3 {[%emt 0:01:23]} g6 {[%emt 0:00:42]} 5. d3 {[%emt 0:04:13]} Bg7 {[%emt 0:01:07]} 6. g3 {[%emt 0:00:56]} d5 {[%emt 0:06:53]} 7. Bg5 {[%emt 0:01:40]} dxc4 {[%emt 0:02:58]} 8. dxc4 {[%emt 0:00:10]} Be6 {[%emt 0:09:55]} 9. Nd2 {[%emt 0:04:04]} h6 {[%emt 0:11:24]} 10. Bxf6 {[%emt 0:00:19]} Bxf6 {[%emt 0:00:32]} 11. Bg2 {[%emt 0:00:15]} Bg7 {[%emt 0:02:14]} 12. O-O {[%emt 0:02:29]} O-O {[%emt 0:00:11]} 13. e3 {[%emt 0:02:40]} f5 {[%emt 0:09:13]} 14. Bd5 {[%emt 0:02:28]} Bf7 {[%emt 0:00:55]} 15. Qb3 {[%emt 0:02:01]} Rb8 {[%emt 0:00:23]} 16. Rad1 {[%emt 0:05:22]} Qe7 {[%emt 0:04:12]} 17. Bxf7+ {[%emt 0:32:02]} Qxf7 {[%emt 0:04:25]} 18. f3 {[%emt 0:07:03]} f4 {[%emt 0:05:34]} 19. Nce4 {[%emt 0:00:49]} fxe3 {[%emt 0:05:22]} 20. Qxe3 {[%emt 0:00:19]} Nd4 {[%emt 0:00:04]} 21. Rc1 {[%emt 0:09:23]} Rfd8 {[%emt 0:09:40]} 22. b4 {[%emt 0:06:14]} Nf5 {[%emt 0:02:40]} 23. Qe2 {[%emt 0:03:28]} Nd4 {[%emt 0:00:19]} 24. Qe3 {[%emt 0:00:16]} Nf5 {[%emt 0:00:06]} 25. Qe2 {[%emt 0:00:25]} Nd4 {[%emt 0:00:05]} 26. Qe3 {[%emt 0:00:19]} Nf5 1/2-1/2

[Event "23rd European Women Club Cup 2018"]
[Site "Halkidiki"]
[Date "2018.10.14"]
[Round "3"]
[White "Pogonina, Natalija"]
[Black "Batsiashvili, Nino"]
[Result "1/2-1/2"]
[ECO "E04"]
[WhiteElo "2485"]
[BlackElo "2482"]
[Annotator "ChessBase"]
[PlyCount "67"]
[EventDate "2018.10.12"]
[EventType "team-tourn"]
[EventCountry "GRE"]
[SourceTitle "playchess.com"]
[Source "ChessBase"]
[SourceQuality "1"]
[WhiteTeam "Ugra"]
[BlackTeam "Nona"]
[TimeControl "40/5400+30:1800+30"]

1. d4 {[%emt 0:00:00]} d5 {[%emt 0:00:00]} 2. Nf3 {[%emt 0:02:37]} Nf6 {[%emt 0:00:52]} 3. c4 {[%emt 0:00:16]} e6 {[%emt 0:00:14]} 4. g3 {[%emt 0:00:09]} dxc4 {[%emt 0:00:18]} 5. Bg2 {[%emt 0:00:11]} a6 {[%emt 0:00:45]} 6. O-O {[%emt 0:01:19]} Nc6 {[%emt 0:00:17]} 7. e3 {[%emt 0:00:37]} Rb8 {[%emt 0:03:56]} 8. Qe2 {[%emt 0:01:44]} b5 {[%emt 0:01:07]} 9. b3 {[%emt 0:00:15]} cxb3 {[%emt 0:00:15]} 10. axb3 {[%emt 0:00:04]} Bd6 {[%emt 0:00:25]} 11. Bb2 {[%emt 0:01:40]} Qe7 {[%emt 0:05:29]} 12. Ne5 {[%emt 0:08:58]} Nb4 {[%emt 0:00:50]} 13. Nc6 {[%emt 0:02:43]} Nxc6 {[%emt 0:01:05]} 14. Bxc6+ {[%emt 0:00:04]} Nd7 {[%emt 0:06:31]} 15. f4 {[%emt 0:11:56]} O-O {[%emt 0:02:37]} 16. Nd2 {[%emt 0:04:19]} Rb6 {[%emt 0:01:05]} 17. Rfc1 {[%emt 0:03:54]} Bb4 {[%emt 0:04:44]} 18. Bg2 {[%emt 0:09:17]} c5 {[%emt 0:12:36]} 19. Ne4 {[%emt 0:00:53]} f5 {[%emt 0:02:44]} 20. Nf2 {[%emt 0:01:54]} cxd4 {[%emt 0:03:06]} 21. Bxd4 {[%emt 0:00:31]} Bc5 {[%emt 0:04:35]} 22. Bxc5 {[%emt 0:11:54]} Nxc5 {[%emt 0:00:03]} 23. Qc2 {[%emt 0:00:09]} Nd7 {[%emt 0:01:50]} 24. Rd1 {[%emt 0:02:17]} Nf6 {[%emt 0:04:51]} 25. Qc3 {[%emt 0:04:12]} Nd5 {[%emt 0:06:40]} 26. Bxd5 {[%emt 0:11:43]} exd5 {[%emt 0:00:02]} 27. Qd4 {[%emt 0:00:07]} Re6 {[%emt 0:00:43]} 28. Re1 {[%emt 0:00:07]} Re8 {[%emt 0:00:51]} 29. Rac1 {[%emt 0:00:14]} Bb7 {[%emt 0:01:57]} 30. Nd3 {[%emt 0:05:03]} Re4 {[%emt 0:09:48]} 31. Qb6 {[%emt 0:01:01]} Re6 {[%emt 0:01:17]} 32. Qd4 {[%emt 0:03:50]} Re4 {[%emt 0:00:24]} 33. Qb6 {[%emt 0:03:15]} Re6 {[%emt 0:00:58]} 34. Qd4 {[%emt 0:03:01]} 1/2-1/2

[Event "23rd European Women Club Cup 2018"]
[Site "Halkidiki"]
[Date "2018.10.14"]
[Round "3"]
[White "Javakhishvili, Lela"]
[Black "Girya, Olga"]
[Result "1-0"]
[ECO "A28"]
[WhiteElo "2475"]
[BlackElo "2479"]
[Annotator "ChessBase"]
[PlyCount "65"]
[EventDate "2018.10.12"]
[EventType "team-tourn"]
[EventCountry "GRE"]
[SourceTitle "playchess.com"]
[Source "ChessBase"]
[SourceQuality "1"]
[WhiteTeam "Nona"]
[BlackTeam "Ugra"]
[TimeControl "40/5400+30:1800+30"]

1. c4 {[%emt 0:00:00]} Nf6 {[%emt 0:00:00]} 2. Nc3 {[%emt 0:00:00]} e5 {[%emt 0:00:00]} 3. Nf3 {[%emt 0:00:09]} Nc6 {[%emt 0:00:00]} 4. e3 {[%emt 0:00:11]} Bb4 {[%emt 0:00:55]} 5. Qc2 {[%emt 0:00:06]} Bxc3 {[%emt 0:00:17]} 6. bxc3 {[%emt 0:00:11]} e4 {[%emt 0:07:38]} 7. Nd4 {[%emt 0:02:36]} d6 {[%emt 0:06:43]} 8. Be2 {[%emt 0:06:30]} O-O {[%emt 0:02:34]} 9. f3 {[%emt 0:01:08]} Qe7 {[%emt 0:20:35]} 10. O-O {[%emt 0:02:05]} Bd7 {[%emt 0:13:25]} 11. fxe4 {[%emt 0:01:26]} Nxe4 {[%emt 0:00:36]} 12. d3 {[%emt 0:01:52]} Nc5 {[%emt 0:01:04]} 13. Nf5 {[%emt 0:10:01]} Bxf5 {[%emt 0:01:37]} 14. Rxf5 {[%emt 0:00:06]} Rae8 {[%emt 0:06:03]} 15. Bd2 {[%emt 0:05:24]} Qd7 {[%emt 0:02:08]} 16. Raf1 {[%emt 0:01:00]} Ne7 {[%emt 0:00:21]} 17. R5f2 {[%emt 0:01:58]} Ng6 {[%emt 0:06:54]} 18. e4 {[%emt 0:03:33]} a6 {[%emt 0:00:11]} 19. Be3 {[%emt 0:06:29]} Qc6 {[%emt 0:05:38]} 20. Rf5 {[%emt 0:10:22]} Ne7 {[%emt 0:05:53]} 21. R5f3 {[%emt 0:00:33]} Ng6 {[%emt 0:00:39]} 22. Rh3 {[%emt 0:01:30]} b5 {[%emt 0:04:43]} 23. cxb5 {[%emt 0:01:16]} axb5 {[%emt 0:02:51]} 24. Rf5 {[%emt 0:09:20]} Na4 25. Bf1 Qxc3 {[%emt 0:02:47]} 26. Qe2 {[%emt 0:00:51]} c6 {[%emt 0:06:20]} 27. Qh5 {[%emt 0:02:54]} h6 {[%emt 0:00:02]} 28. d4 {[%emt 0:04:40]} Qa1 {[%emt 0:00:54]} 29. e5 {[%emt 0:02:05]} Re6 {[%emt 0:02:46]} 30. Bxh6 {[%emt 0:04:39]} Nh4 {[%emt 0:00:18]} 31. Bxg7 {[%emt 0:04:45]} Qxd4+ {[%emt 0:00:26]} 32. Kh1 {[%emt 0:00:28]} Kxg7 {[%emt 0:00:59]} 33. Rxh4 {[%emt 0:00:20]} 1-0

[Event "23rd European Women Club Cup 2018"]
[Site "Halkidiki"]
[Date "2018.10.14"]
[Round "3"]
[White "Gaponenko, Inna"]
[Black "Kumanska, Olena"]
[Result "1-0"]
[ECO "B40"]
[WhiteElo "2409"]
[BlackElo "2054"]
[Annotator "NA"]
[PlyCount "87"]
[EventDate "2018.10.12"]
[EventType "team-tourn"]
[EventCountry "GRE"]
[SourceTitle "playchess.com"]
[Source "ChessBase"]
[SourceQuality "1"]
[WhiteTeam "Kyiv"]
[BlackTeam "Beer Sheva"]
[TimeControl "40/5400+30:1800+30"]

1. e4 {[%emt 0:00:00]} c5 {[%emt 0:00:00]} 2. Nf3 {[%emt 0:00:00]} e6 {[%emt 0:00:00]} 3. c3 {[%emt 0:00:00]} a6 {[%emt 0:00:08]} 4. d4 {[%emt 0:00:36]} cxd4 {[%emt 0:00:12]} 5. cxd4 {[%emt 0:00:41]} d6 {[%emt 0:01:47]} 6. Nc3 {[%emt 0:03:31]} Be7 {[%emt 0:00:16]} 7. Bd3 {[%emt 0:04:42]} Nf6 {[%emt 0:01:04]} 8. O-O {[%emt 0:00:42]} b5 {[%emt 0:00:44]} 9. a3 {[%emt 0:04:25]} Bb7 {[%emt 0:01:27]} 10. Re1 {[%emt 0:04:20]} Nbd7 {[%emt 0:03:06]} 11. Qe2 {[%emt 0:15:12]} e5 {[%emt 0:03:42]} 12. Bd2 {[%emt 0:05:00]} O-O {[%emt 0:00:58]} 13. Rad1 {[%emt 0:08:00]} Re8 {[%emt 0:01:59]} 14. Bc1 {[%emt 0:04:58]} Qc7 {[%emt 0:00:54]} 15. Bb1 {[%emt 0:00:29]} Nb6 {[%emt 0:01:21]} 16. h3 {[%emt 0:12:49]} Rac8 {[%emt 0:02:22]} 17. Nh4 {[%emt 0:10:50]} Bf8 {[%emt 0:04:02]} 18. dxe5 {[%emt 0:07:39]} dxe5 {[%emt 0:00:21]} 19. Qf3 {[%emt 0:00:33]} Nc4 {[%emt 0:06:40]} 20. Nd5 {[%emt 0:09:46]} Nxd5 {[%emt 0:02:15]} 21. exd5 {[%emt 0:00:01]} g6 {[%emt 0:00:15]} 22. g4 {[%emt 0:05:26]} Bg7 {[%emt 0:00:52]} 23. Ng2 {[%emt 0:00:43]} Qd6 {[%emt 0:00:25]} 24. Ne3 {[%emt 0:00:48]} Nxe3 {[%emt 0:01:30]} 25. Bxe3 {[%emt 0:00:36]} Red8 {[%emt 0:00:21]} 26. Be4 {[%emt 0:00:26]} b4 {[%emt 0:01:24]} 27. Bg5 {[%emt 0:00:39]} Rf8 {[%emt 0:01:27]} 28. axb4 {[%emt 0:00:19]} h6 {[%emt 0:01:31]} 29. Bc1 {[%emt 0:00:22]} Rcd8 {[%emt 0:01:46]} 30. Qb3 {[%emt 0:00:46]} Kh8 {[%emt 0:00:47]} 31. Be3 {[%emt 0:00:17]} Qf6 {[%emt 0:00:50]} 32. Bc5 {[%emt 0:00:08]} Rg8 {[%emt 0:00:45]} 33. d6 {[%emt 0:00:14]} Bxe4 {[%emt 0:00:33]} 34. Rxe4 {[%emt 0:00:01]} Rd7 {[%emt 0:00:36]} 35. Re3 {[%emt 0:00:22]} h5 {[%emt 0:03:50]} 36. Qa4 {[%emt 0:00:39]} Qe6 {[%emt 0:00:15]} 37. Qb3 {[%emt 0:01:24]} Qf6 {[%emt 0:00:31]} 38. Rf3 {[%emt 0:00:22]} Qg5 {[%emt 0:01:31]} 39. Rxf7 {[%emt 0:00:53]} Rxf7 {[%emt 0:01:11]} 40. Qxf7 {[%emt 0:00:00]} hxg4 {[%emt 0:00:00]} 41. h4 {[%emt 0:19:05]} Qxh4 {[%emt 0:01:47]} 42. d7 {[%emt 0:01:51]} g3 {[%emt 0:01:05]} 43. Qxg8+ {[%emt 0:00:19]} Kxg8 {[%emt 0:00:06]} 44. d8=Q+ {[%emt 0:00:05]} 1-0

[Event "23rd European Women Club Cup 2018"]
[Site "Halkidiki"]
[Date "2018.10.14"]
[Round "3"]
[White "Nechaeva, Marina"]
[Black "Khotenashvili, Bela"]
[Result "1/2-1/2"]
[ECO "A56"]
[WhiteElo "2409"]
[BlackElo "2469"]
[Annotator "ChessBase"]
[PlyCount "85"]
[EventDate "2018.10.12"]
[EventType "team-tourn"]
[EventCountry "GRE"]
[SourceTitle "playchess.com"]
[Source "ChessBase"]
[SourceQuality "1"]
[WhiteTeam "Ugra"]
[BlackTeam "Nona"]
[TimeControl "40/5400+30:1800+30"]

1. d4 {[%emt 0:00:00]} Nf6 {[%emt 0:00:00]} 2. c4 {[%emt 0:00:00]} c5 {[%emt 0:00:00]} 3. d5 {[%emt 0:00:00]} g6 {[%emt 0:00:08]} 4. Nc3 {[%emt 0:00:00]} Bg7 {[%emt 0:00:05]} 5. e4 {[%emt 0:00:00]} d6 {[%emt 0:00:11]} 6. Bd3 {[%emt 0:00:03]} O-O {[%emt 0:00:11]} 7. h3 {[%emt 0:00:05]} e6 {[%emt 0:00:22]} 8. Nf3 {[%emt 0:00:05]} exd5 {[%emt 0:00:16]} 9. cxd5 {[%emt 0:00:04]} Re8 {[%emt 0:00:07]} 10. O-O {[%emt 0:00:08]} Nbd7 {[%emt 0:00:06]} 11. Re1 {[%emt 0:00:36]} Ne5 {[%emt 0:00:21]} 12. Nxe5 {[%emt 0:07:13]} Rxe5 {[%emt 0:00:06]} 13. Bf4 {[%emt 0:01:46]} Nh5 {[%emt 0:00:07]} 14. Bxe5 {[%emt 0:07:57]} Bxe5 {[%emt 0:00:10]} 15. Re3 {[%emt 0:02:31]} Qg5 {[%emt 0:03:27]} 16. Bf1 {[%emt 0:02:50]} Nf4 {[%emt 0:00:28]} 17. Rg3 {[%emt 0:03:48]} Qh6 {[%emt 0:00:19]} 18. Qa4 {[%emt 0:09:01]} Kg7 {[%emt 0:04:32]} 19. Qa5 {[%emt 0:10:44]} Qh4 {[%emt 0:32:38]} 20. Re1 {[%emt 0:18:59]} Qe7 {[%emt 0:32:54]} 21. Nd1 {[%emt 0:07:24]} h5 {[%emt 0:05:24]} 22. Kh1 {[%emt 0:04:22]} h4 {[%emt 0:03:52]} 23. Rf3 {[%emt 0:01:17]} b6 {[%emt 0:02:17]} 24. Qd2 {[%emt 0:00:04]} Qg5 {[%emt 0:00:13]} 25. Ne3 {[%emt 0:01:05]} b5 {[%emt 0:05:13]} 26. g3 {[%emt 0:12:23]} hxg3 {[%emt 0:04:08]} 27. fxg3 {[%emt 0:00:04]} Nxh3 {[%emt 0:05:20]} 28. Bxh3 {[%emt 0:00:05]} Qh6 {[%emt 0:00:31]} 29. Nf5+ {[%emt 0:03:18]} gxf5 {[%emt 0:00:01]} 30. Qxh6+ {[%emt 0:00:04]} Kxh6 {[%emt 0:00:03]} 31. Bxf5 {[%emt 0:00:04]} Bxf5 {[%emt 0:00:13]} 32. Rxf5 {[%emt 0:00:54]} Kg6 {[%emt 0:00:14]} 33. Kg2 {[%emt 0:02:13]} b4 {[%emt 0:00:37]} 34. b3 {[%emt 0:01:32]} a5 {[%emt 0:00:02]} 35. Rh1 {[%emt 0:00:12]} a4 {[%emt 0:00:41]} 36. Rh4 {[%emt 0:00:35]} Kg7 {[%emt 0:01:13]} 37. Rf3 {[%emt 0:05:45]} axb3 {[%emt 0:00:12]} 38. axb3 {[%emt 0:00:02]} Rc8 {[%emt 0:01:43]} 39. Rh1 {[%emt 0:00:46]} Rc7 {[%emt 0:00:32]} 40. Rhf1 {[%emt 0:00:00]} Kg6 {[%emt 0:00:00]} 41. R1f2 {[%emt 0:05:41]} Ra7 {[%emt 0:07:44]} 42. Rc2 {[%emt 0:01:33]} Ra3 {[%emt 0:04:00]} 43. Kf2 {[%emt 0:05:11]} 1/2-1/2

[Event "23rd European Women Club Cup 2018"]
[Site "Halkidiki"]
[Date "2018.10.14"]
[Round "3"]
[White "Ovod, Evgenija"]
[Black "Mamedjarova, Zeinab"]
[Result "1-0"]
[ECO "C42"]
[WhiteElo "2363"]
[BlackElo "2358"]
[Annotator "NA"]
[PlyCount "117"]
[EventDate "2018.10.12"]
[EventType "team-tourn"]
[EventCountry "GRE"]
[SourceTitle "playchess.com"]
[Source "ChessBase"]
[SourceQuality "1"]
[WhiteTeam "SSHOR"]
[BlackTeam "Odlar Yurdu"]
[TimeControl "40/5400+30:1800+30"]

1. e4 {[%emt 0:00:00]} e5 {[%emt 0:00:02]} 2. Nf3 {[%emt 0:00:00]} Nf6 {[%emt 0:00:08]} 3. Nxe5 {[%emt 0:00:00]} d6 {[%emt 0:00:03]} 4. Nf3 {[%emt 0:00:00]} Nxe4 {[%emt 0:00:02]} 5. Nc3 {[%emt 0:00:07]} Nxc3 {[%emt 0:00:16]} 6. dxc3 {[%emt 0:00:12]} Be7 {[%emt 0:00:10]} 7. Be3 {[%emt 0:00:15]} Nc6 {[%emt 0:00:43]} 8. Qd2 {[%emt 0:00:11]} Be6 {[%emt 0:01:16]} 9. O-O-O {[%emt 0:00:10]} Qd7 {[%emt 0:00:19]} 10. a3 {[%emt 0:00:09]} h6 {[%emt 0:03:51]} 11. Nd4 {[%emt 0:01:49]} Nxd4 {[%emt 0:10:48]} 12. Bxd4 {[%emt 0:00:10]} O-O {[%emt 0:22:54]} 13. c4 {[%emt 0:09:07]} Rfe8 {[%emt 0:04:00]} 14. Qc3 {[%emt 0:04:16]} Bf8 {[%emt 0:00:05]} 15. Rg1 {[%emt 0:06:30]} Qe7 {[%emt 0:15:12]} 16. g4 {[%emt 0:03:59]} c5 {[%emt 0:05:39]} 17. Be3 {[%emt 0:00:04]} b5 {[%emt 0:00:59]} 18. g5 {[%emt 0:08:52]} h5 {[%emt 0:02:31]} 19. g6 {[%emt 0:00:07]} Bg4 {[%emt 0:04:31]} 20. gxf7+ {[%emt 0:18:55]} Qxf7 {[%emt 0:00:02]} 21. Rxg4 {[%emt 0:00:08]} hxg4 {[%emt 0:00:03]} 22. Bg2 {[%emt 0:00:04]} Kh8 {[%emt 0:19:58]} 23. Bxa8 {[%emt 0:05:09]} Rxa8 {[%emt 0:00:02]} 24. cxb5 {[%emt 0:00:04]} Rb8 {[%emt 0:00:19]} 25. a4 {[%emt 0:01:34]} Be7 {[%emt 0:00:15]} 26. b3 {[%emt 0:04:18]} Qe6 {[%emt 0:01:08]} 27. Qc4 {[%emt 0:04:22]} Qg6 {[%emt 0:06:14]} 28. Kb1 {[%emt 0:10:01]} Re8 {[%emt 0:00:34]} 29. Rg1 {[%emt 0:02:06]} Bf6 {[%emt 0:00:25]} 30. Qxg4 {[%emt 0:01:24]} Qf7 {[%emt 0:01:26]} 31. Qg6 {[%emt 0:03:28]} Qe6 {[%emt 0:00:54]} 32. Bg5 {[%emt 0:03:37]} Bd4 {[%emt 0:00:02]} 33. Qxe6 {[%emt 0:01:59]} Rxe6 {[%emt 0:00:02]} 34. Be3 {[%emt 0:00:13]} Be5 {[%emt 0:01:34]} 35. c4 {[%emt 0:00:37]} Kg8 {[%emt 0:00:14]} 36. h4 {[%emt 0:00:40]} Kf7 {[%emt 0:00:08]} 37. Kc2 {[%emt 0:00:22]} Re8 {[%emt 0:01:08]} 38. a5 {[%emt 0:02:08]} Bf6 {[%emt 0:00:30]} 39. h5 {[%emt 0:02:15]} Rh8 {[%emt 0:00:28]} 40. Rh1 {[%emt 0:00:00]} Ke6 {[%emt 0:00:00]} 41. b4 {[%emt 0:11:34]} Rc8 {[%emt 0:03:00]} 42. bxc5 {[%emt 0:06:51]} dxc5 {[%emt 0:00:13]} 43. b6 {[%emt 0:00:08]} axb6 {[%emt 0:02:14]} 44. axb6 {[%emt 0:00:03]} Be5 {[%emt 0:01:44]} 45. b7 {[%emt 0:00:52]} Rb8 {[%emt 0:11:09]} 46. Rb1 {[%emt 0:00:06]} Rh8 {[%emt 0:05:49]} 47. Bxc5 {[%emt 0:00:11]} Bb8 {[%emt 0:01:50]} 48. Be3 {[%emt 0:07:52]} Kd7 {[%emt 0:02:01]} 49. Rb5 {[%emt 0:01:02]} Kc6 {[%emt 0:04:50]} 50. Rb6+ {[%emt 0:03:39]} Kd7 {[%emt 0:00:17]} 51. Rg6 {[%emt 0:00:49]} Rxh5 {[%emt 0:00:54]} 52. c5 {[%emt 0:01:37]} Rf5 {[%emt 0:01:03]} 53. c6+ {[%emt 0:00:58]} Kc7 {[%emt 0:00:19]} 54. Kd3 {[%emt 0:01:26]} Rf7 {[%emt 0:00:57]} 55. Ke4 {[%emt 0:00:47]} Re7+ {[%emt 0:01:03]} 56. Kd5 {[%emt 0:00:06]} Rf7 {[%emt 0:00:28]} 57. Bd4 {[%emt 0:00:32]} Rf5+ {[%emt 0:00:50]} 58. Ke4 {[%emt 0:00:45]} Rf7 {[%emt 0:00:50]} 59. Be5+ {[%emt 0:00:26]} 1-0

[Event "23rd European Women Club Cup 2018"]
[Site "Halkidiki"]
[Date "2018.10.14"]
[Round "3"]
[White "Balajayeva, Khanim"]
[Black "Belenkaya, Dina"]
[Result "1-0"]
[ECO "B13"]
[WhiteElo "2326"]
[BlackElo "2329"]
[Annotator "NA"]
[PlyCount "53"]
[EventDate "2018.10.12"]
[EventType "team-tourn"]
[EventCountry "GRE"]
[SourceTitle "playchess.com"]
[Source "ChessBase"]
[SourceQuality "1"]
[WhiteTeam "Odlar Yurdu"]
[BlackTeam "SSHOR"]
[TimeControl "40/5400+30:1800+30"]

1. e4 {[%emt 0:00:00]} c6 {[%emt 0:00:00]} 2. d4 {[%emt 0:00:00]} d5 {[%emt 0:00:08]} 3. exd5 {[%emt 0:00:00]} cxd5 {[%emt 0:00:04]} 4. c4 {[%emt 0:00:00]} Nf6 {[%emt 0:00:12]} 5. Nc3 {[%emt 0:00:36]} Nc6 {[%emt 0:00:17]} 6. Bg5 {[%emt 0:00:08]} dxc4 {[%emt 0:02:46]} 7. d5 {[%emt 0:00:36]} Ne5 {[%emt 0:00:34]} 8. Qd4 {[%emt 0:00:07]} h6 {[%emt 0:01:20]} 9. Bf4 {[%emt 0:01:22]} Ng6 {[%emt 0:02:31]} 10. Bxc4 {[%emt 0:00:46]} Nxf4 {[%emt 0:01:27]} 11. Qxf4 {[%emt 0:00:03]} g5 {[%emt 0:06:07]} 12. Qe3 {[%emt 0:00:23]} Bg7 {[%emt 0:00:57]} 13. Nf3 {[%emt 0:00:15]} Qb6 {[%emt 0:06:40]} 14. Qxb6 {[%emt 0:05:22]} axb6 {[%emt 0:03:40]} 15. O-O {[%emt 0:00:20]} Bf5 {[%emt 0:15:15]} 16. Rfe1 {[%emt 0:10:39]} Nd7 {[%emt 0:05:48]} 17. Bb5 {[%emt 0:09:59]} Kd8 {[%emt 0:02:35]} 18. Rad1 {[%emt 0:10:31]} Bg4 {[%emt 0:21:01]} 19. Re3 {[%emt 0:07:46]} Rf8 {[%emt 0:05:42]} 20. d6 {[%emt 0:06:06]} e6 {[%emt 0:06:24]} 21. Na4 {[%emt 0:00:14]} Nc5 {[%emt 0:09:08]} 22. Nxb6 {[%emt 0:01:08]} Ra5 {[%emt 0:02:15]} 23. a4 {[%emt 0:01:28]} Bxb2 {[%emt 0:00:19]} 24. Nc4 {[%emt 0:00:56]} Rxb5 {[%emt 0:01:43]} 25. axb5 {[%emt 0:00:05]} Bg7 {[%emt 0:00:20]} 26. Ra3 {[%emt 0:00:25]} e5 {[%emt 0:03:56]} 27. Nb6 {[%emt 0:01:02]} 1-0